[Event "55th Rubinstein Memorial-A 2019"]
[Site "Polanica-Zdroj"]
[Date "2019.08.19"]
[Round "3.1"]
[White "Warakomski, Tomasz"]
[Black "Jaskolka, Tomasz"]
[Result "1-0"]
[ECO "C06"]
[WhiteElo "2497"]
[BlackElo "2227"]
[Annotator "ChessBase"]
[PlyCount "134"]
[EventDate "2019.08.17"]
[EventType "swiss"]
[EventCountry "POL"]
[SourceTitle "playchess.com"]
[Source "ChessBase"]
[SourceQuality "1"]
[TimeControl "40/5400+30:1800+30"]

1. e4 {[%emt 0:00:00]} e6 {[%emt 0:00:00]} 2. d4 {[%emt 0:00:00]} d5 {[%emt 0:00:00]} 3. Nd2 {[%emt 0:00:31]} Nf6 {[%emt 0:00:00]} 4. e5 {[%emt 0:00:05]} Nfd7 {[%emt 0:00:00]} 5. c3 {[%emt 0:00:08]} c5 {[%emt 0:00:00]} 6. Bd3 {[%emt 0:00:06]} Nc6 {[%emt 0:00:04]} 7. Ne2 {[%emt 0:00:05]} cxd4 {[%emt 0:00:14]} 8. cxd4 {[%emt 0:00:05]} f6 {[%emt 0:00:02]} 9. exf6 {[%emt 0:00:06]} Nxf6 {[%emt 0:00:04]} 10. Nf3 {[%emt 0:00:20]} Bd6 {[%emt 0:00:05]} 11. O-O {[%emt 0:00:06]} Qc7 {[%emt 0:00:13]} 12. Nc3 {[%emt 0:02:48]} a6 {[%emt 0:00:32]} 13. h3 {[%emt 0:00:52]} O-O {[%emt 0:00:33]} 14. Re1 {[%emt 0:00:06]} Bd7 {[%emt 0:02:23]} 15. Bd2 {[%emt 0:00:08]} Rae8 {[%emt 0:01:14]} 16. Rc1 {[%emt 0:00:03]} Qb8 {[%emt 0:02:07]} 17. a3 {[%emt 0:00:06]} Kh8 {[%emt 0:07:09]} 18. Bg5 {[%emt 0:00:06]} Bf4 {[%emt 0:07:53]} 19. Bxf4 {[%emt 0:00:05]} Qxf4 {[%emt 0:00:03]} 20. Ne2 {[%emt 0:00:04]} Qd6 {[%emt 0:00:29]} 21. Ng3 {[%emt 0:00:04]} Qf4 {[%emt 0:10:29]} 22. Ne2 {[%emt 0:00:27]} Qd6 {[%emt 0:00:18]} 23. Qd2 {[%emt 0:00:05]} e5 {[%emt 0:01:47]} 24. dxe5 {[%emt 0:00:06]} Nxe5 {[%emt 0:00:05]} 25. Nxe5 {[%emt 0:00:03]} Rxe5 {[%emt 0:01:07]} 26. Ng3 {[%emt 0:00:08]} Rfe8 {[%emt 0:01:07]} 27. Re2 {[%emt 0:00:05]} Rxe2 {[%emt 0:01:58]} 28. Bxe2 {[%emt 0:02:56]} Qe5 {[%emt 0:03:29]} 29. Bf3 {[%emt 0:01:51]} Bc6 {[%emt 0:01:38]} 30. Ne2 {[%emt 0:02:50]} Ne4 {[%emt 0:10:19]} 31. Qd4 {[%emt 0:21:14]} Qg5 {[%emt 0:08:03]} 32. Rd1 {[%emt 0:06:10]} Rf8 {[%emt 0:04:33]} 33. Qe3 {[%emt 0:00:49]} Qf6 {[%emt 0:23:13]} 34. Nd4 {[%emt 0:09:02]} Bd7 {[%emt 0:05:50]} 35. Bxe4 {[%emt 0:22:50]} dxe4 {[%emt 0:00:05]} 36. Ne2 {[%emt 0:00:05]} Bc6 {[%emt 0:03:26]} 37. Nc3 {[%emt 0:00:17]} h6 {[%emt 0:01:54]} 38. Rd4 {[%emt 0:00:22]} Rd8 {[%emt 0:00:34]} 39. Ne2 {[%emt 0:11:28]} Rxd4 {[%emt 0:00:54]} 40. Nxd4 {[%emt 0:00:00]} Qd6 {[%emt 0:00:00]} 41. Qc3 {[%emt 0:08:39]} Bd7 {[%emt 0:05:38]} 42. Kf1 {[%emt 0:02:26]} Qh2 {[%emt 0:11:52]} 43. Qg3 {[%emt 0:00:56]} Qh1+ {[%emt 0:05:38]} 44. Ke2 {[%emt 0:00:05]} Ba4 {[%emt 0:01:03]} 45. b3 {[%emt 0:12:08]} Qa1 {[%emt 0:00:27]} 46. Ke3 {[%emt 0:00:30]} Qc3+ {[%emt 0:05:40]} 47. Kxe4 {[%emt 0:00:06]} Bc6+ {[%emt 0:00:07]} 48. Nxc6 {[%emt 0:00:23]} Qxc6+ {[%emt 0:00:03]} 49. Ke5 {[%emt 0:02:13]} Qf6+ {[%emt 0:00:35]} 50. Kd5 {[%emt 0:00:19]} Qc6+ {[%emt 0:00:14]} 51. Kd4 {[%emt 0:00:04]} Qb6+ {[%emt 0:00:14]} 52. Kc3 {[%emt 0:00:48]} Qc5+ {[%emt 0:00:16]} 53. Kb2 {[%emt 0:00:08]} Qd4+ {[%emt 0:00:19]} 54. Kc2 {[%emt 0:00:03]} Qc5+ {[%emt 0:00:29]} 55. Kb1 {[%emt 0:00:16]} Qd5 {[%emt 0:06:12]} 56. b4 {[%emt 0:03:40]} Qd1+ {[%emt 0:01:28]} 57. Kb2 {[%emt 0:00:05]} Qd2+ {[%emt 0:00:44]} 58. Kb3 {[%emt 0:00:03]} Qd5+ {[%emt 0:00:34]} 59. Kc3 {[%emt 0:00:13]} Qc6+ {[%emt 0:00:14]} 60. Kb2 {[%emt 0:01:29]} Qf6+ {[%emt 0:00:20]} 61. Kb1 {[%emt 0:00:13]} Qf5+ {[%emt 0:01:28]} 62. Kc1 {[%emt 0:00:04]} Qd5 {[%emt 0:00:40]} 63. Qg4 {[%emt 0:04:22]} Qd3 {[%emt 0:01:08]} 64. Qc8+ {[%emt 0:00:07]} Kh7 {[%emt 0:00:03]} 65. Qc2 {[%emt 0:00:05]} Qxc2+ {[%emt 0:01:26]} 66. Kxc2 {[%emt 0:00:05]} Kg6 {[%emt 0:00:02]} 67. Kd3 {[%emt 0:00:06]} Kf5 {[%emt 0:00:08]} 1-0

[Event "55th Rubinstein Memorial-A 2019"]
[Site "Polanica-Zdroj"]
[Date "2019.08.19"]
[Round "3.2"]
[White "Lukasiewicz, Krzysztof"]
[Black "Shishkin, Vadim"]
[Result "1/2-1/2"]
[ECO "B58"]
[WhiteElo "2185"]
[BlackElo "2445"]
[Annotator "NA"]
[PlyCount "63"]
[EventDate "2019.08.17"]
[EventType "swiss"]
[EventCountry "POL"]
[SourceTitle "playchess.com"]
[Source "ChessBase"]
[SourceQuality "1"]
[TimeControl "40/5400+30:1800+30"]

1. e4 {[%emt 0:00:00]} c5 {[%emt 0:00:00]} 2. Nf3 {[%emt 0:00:00]} Nc6 {[%emt 0:00:00]} 3. d4 {[%emt 0:00:00]} cxd4 {[%emt 0:00:00]} 4. Nxd4 {[%emt 0:00:00]} Nf6 {[%emt 0:00:00]} 5. Nc3 {[%emt 0:00:00]} d6 {[%emt 0:00:00]} 6. Be2 {[%emt 0:00:00]} e5 {[%emt 0:01:31]} 7. Nf3 {[%emt 0:02:09]} Be7 {[%emt 0:00:43]} 8. Bg5 {[%emt 0:08:10]} Be6 {[%emt 0:07:41]} 9. O-O {[%emt 0:07:39]} O-O {[%emt 0:14:12]} 10. a3 {[%emt 0:01:48]} h6 {[%emt 0:03:43]} 11. Bxf6 {[%emt 0:00:31]} Bxf6 {[%emt 0:00:03]} 12. Nd5 {[%emt 0:00:06]} Bxd5 {[%emt 0:13:38]} 13. Qxd5 {[%emt 0:01:18]} Qc7 {[%emt 0:00:44]} 14. c3 {[%emt 0:05:11]} Rfd8 {[%emt 0:07:17]} 15. Qa2 {[%emt 0:16:59]} Rac8 {[%emt 0:02:46]} 16. Rad1 {[%emt 0:01:20]} Ne7 {[%emt 0:01:11]} 17. Bb5 {[%emt 0:03:14]} g6 {[%emt 0:13:58]} 18. Ba4 {[%emt 0:03:34]} Kg7 {[%emt 0:00:19]} 19. Bb3 {[%emt 0:00:05]} Rf8 {[%emt 0:00:48]} 20. g3 {[%emt 0:03:56]} Ng8 {[%emt 0:07:07]} 21. Rfe1 {[%emt 0:04:05]} Be7 {[%emt 0:00:09]} 22. Nd2 {[%emt 0:01:30]} Nf6 {[%emt 0:00:45]} 23. Nf1 {[%emt 0:01:12]} Qc5 {[%emt 0:01:53]} 24. Bc2 {[%emt 0:07:05]} Bd8 {[%emt 0:02:43]} 25. Ne3 {[%emt 0:02:33]} Bb6 {[%emt 0:01:44]} 26. Rd2 {[%emt 0:00:15]} Rfd8 {[%emt 0:02:47]} 27. Nd5 {[%emt 0:03:22]} Nxd5 {[%emt 0:00:54]} 28. Qxd5 {[%emt 0:00:06]} Qxd5 {[%emt 0:00:43]} 29. Rxd5 {[%emt 0:00:05]} Kf6 {[%emt 0:00:26]} 30. Red1 {[%emt 0:01:07]} Ke7 {[%emt 0:00:24]} 31. Kg2 {[%emt 0:00:44]} a6 {[%emt 0:02:21]} 32. Bb3 {[%emt 0:01:56]} 1/2-1/2

[Event "55th Rubinstein Memorial-A 2019"]
[Site "Polanica-Zdroj"]
[Date "2019.08.19"]
[Round "3.3"]
[White "Cukrowski, Filip"]
[Black "Wisniewski, Michal"]
[Result "1-0"]
[ECO "B50"]
[WhiteElo "2424"]
[BlackElo "2130"]
[Annotator "NA"]
[PlyCount "123"]
[EventDate "2019.08.17"]
[EventType "swiss"]
[EventCountry "POL"]
[SourceTitle "playchess.com"]
[Source "ChessBase"]
[SourceQuality "1"]
[TimeControl "40/5400+30:1800+30"]

1. e4 {[%emt 0:06:50]} c5 {[%emt 0:00:15]} 2. Nf3 {[%emt 0:00:10]} d6 {[%emt 0:05:31]} 3. c3 {[%emt 0:05:16]} Nf6 {[%emt 0:00:48]} 4. Be2 {[%emt 0:00:06]} Nbd7 {[%emt 0:00:06]} 5. d3 {[%emt 0:03:57]} g6 {[%emt 0:00:09]} 6. O-O {[%emt 0:00:42]} Bg7 {[%emt 0:00:05]} 7. Re1 {[%emt 0:00:53]} O-O {[%emt 0:00:12]} 8. Nbd2 {[%emt 0:01:05]} b6 {[%emt 0:00:06]} 9. d4 {[%emt 0:01:03]} cxd4 {[%emt 0:00:13]} 10. cxd4 {[%emt 0:00:34]} e5 {[%emt 0:00:04]} 11. dxe5 {[%emt 0:10:46]} dxe5 {[%emt 0:00:42]} 12. Nc4 {[%emt 0:21:42]} Bb7 {[%emt 0:09:36]} 13. Ng5 {[%emt 0:10:29]} Nxe4 {[%emt 0:08:35]} 14. Nxe4 {[%emt 0:05:48]} Bxe4 {[%emt 0:00:10]} 15. Bg4 {[%emt 0:02:14]} Nc5 {[%emt 0:03:51]} 16. b4 {[%emt 0:03:56]} Qxd1 {[%emt 0:02:09]} 17. Rxd1 {[%emt 0:05:59]} Nd3 {[%emt 0:09:35]} 18. Nd6 {[%emt 0:03:03]} Bc6 {[%emt 0:00:38]} 19. b5 {[%emt 0:00:45]} e4 {[%emt 0:00:20]} 20. bxc6 {[%emt 0:03:21]} Bxa1 {[%emt 0:00:01]} 21. Ba3 {[%emt 0:00:35]} f5 {[%emt 0:05:28]} 22. Nxe4 {[%emt 0:02:46]} Rfc8 {[%emt 0:08:47]} 23. Bf3 {[%emt 0:04:59]} Ne5 {[%emt 0:04:02]} 24. Nf6+ {[%emt 0:00:58]} Kf7 {[%emt 0:03:11]} 25. Bd5+ {[%emt 0:00:32]} Kxf6 {[%emt 0:00:11]} 26. Rxa1 {[%emt 0:00:05]} Nxc6 {[%emt 0:00:44]} 27. Re1 {[%emt 0:01:52]} Re8 {[%emt 0:01:33]} 28. Bb2+ {[%emt 0:00:10]} Kg5 {[%emt 0:00:11]} 29. f4+ {[%emt 0:00:06]} Kh6 {[%emt 0:00:06]} 30. Rxe8 {[%emt 0:01:02]} Rxe8 {[%emt 0:00:01]} 31. Bxc6 {[%emt 0:00:10]} Re2 {[%emt 0:00:00]} 32. Ba3 {[%emt 0:00:21]} g5 {[%emt 0:00:51]} 33. fxg5+ Kxg5 {[%emt 0:00:01]} 34. Bd5 {[%emt 0:00:55]} b5 {[%emt 0:00:12]} 35. Kf1 {[%emt 0:00:35]} Rc2 {[%emt 0:00:03]} 36. Bb3 {[%emt 0:00:06]} Rc8 {[%emt 0:00:03]} 37. Bb4 {[%emt 0:00:15]} Kg6 {[%emt 0:00:03]} 38. Ke2 {[%emt 0:00:29]} Rc1 {[%emt 0:00:09]} 39. g3 {[%emt 0:00:26]} Rh1 {[%emt 0:00:26]} 40. h4 {[%emt 0:00:00]} f4 {[%emt 0:00:00]} 41. gxf4 {[%emt 0:00:39]} Rxh4 {[%emt 0:00:11]} 42. Kf3 {[%emt 0:00:21]} h5 {[%emt 0:00:22]} 43. Bc2+ {[%emt 0:00:37]} Kf6 {[%emt 0:00:10]} 44. Bc3+ {[%emt 0:00:50]} Kf7 {[%emt 0:00:04]} 45. Ke4 {[%emt 0:00:54]} Rh2 {[%emt 0:00:59]} 46. Bb3+ {[%emt 0:00:21]} Ke8 {[%emt 0:00:01]} 47. Be5 {[%emt 0:07:19]} h4 {[%emt 0:00:59]} 48. Kf3 {[%emt 0:06:36]} a5 {[%emt 0:00:03]} 49. f5 {[%emt 0:03:30]} Rd2 {[%emt 0:01:49]} 50. Ke3 {[%emt 0:02:17]} Rd7 {[%emt 0:00:12]} 51. Be6 {[%emt 0:02:20]} Rh7 {[%emt 0:00:13]} 52. f6 {[%emt 0:08:23]} h3 {[%emt 0:00:06]} 53. Bh2 {[%emt 0:01:02]} Rf7 {[%emt 0:00:09]} 54. Bxf7+ {[%emt 0:00:13]} Kxf7 {[%emt 0:00:02]} 55. Kd4 {[%emt 0:00:08]} Kxf6 {[%emt 0:00:17]} 56. Kc5 {[%emt 0:00:05]} b4 {[%emt 0:00:02]} 57. Kb5 {[%emt 0:00:29]} Ke6 {[%emt 0:00:01]} 58. Kxa5 {[%emt 0:00:06]} Kd5 {[%emt 0:00:06]} 59. Kb5 {[%emt 0:00:06]} Ke6 {[%emt 0:00:12]} 60. Kxb4 {[%emt 0:00:11]} Kd7 {[%emt 0:00:03]} 61. Kb5 Kc8 62. Kb6 {[%emt 0:00:08]} 1-0

[Event "55th Rubinstein Memorial-A 2019"]
[Site "Polanica-Zdroj"]
[Date "2019.08.19"]
[Round "3.4"]
[White "Oglaza, Oskar"]
[Black "Luba, Lukasz"]
[Result "1-0"]
[ECO "C41"]
[WhiteElo "2367"]
[BlackElo "2130"]
[Annotator "NA"]
[PlyCount "79"]
[EventDate "2019.08.17"]
[EventType "swiss"]
[EventCountry "POL"]
[SourceTitle "playchess.com"]
[Source "ChessBase"]
[SourceQuality "1"]
[TimeControl "40/5400+30:1800+30"]

1. e4 {[%emt 0:00:00]} e5 {[%emt 0:00:16]} 2. Nf3 {[%emt 0:00:33]} d6 {[%emt 0:00:22]} 3. d4 {[%emt 0:00:14]} exd4 {[%emt 0:00:33]} 4. Nxd4 {[%emt 0:00:51]} Nf6 {[%emt 0:00:43]} 5. Nc3 {[%emt 0:00:23]} Nc6 {[%emt 0:00:14]} 6. Nxc6 {[%emt 0:12:21]} bxc6 {[%emt 0:02:53]} 7. Bc4 {[%emt 0:00:12]} Be6 {[%emt 0:00:05]} 8. Bb3 {[%emt 0:06:28]} Be7 {[%emt 0:04:25]} 9. Ba4 {[%emt 0:14:26]} Bd7 {[%emt 0:01:43]} 10. O-O {[%emt 0:00:47]} O-O {[%emt 0:00:19]} 11. Bf4 {[%emt 0:04:32]} Rb8 {[%emt 0:08:18]} 12. Re1 {[%emt 0:14:07]} Ng4 {[%emt 0:09:31]} 13. Bb3 {[%emt 0:03:42]} Bh4 {[%emt 0:01:59]} 14. g3 {[%emt 0:07:36]} Bf6 {[%emt 0:06:55]} 15. f3 {[%emt 0:06:25]} Ne5 {[%emt 0:01:00]} 16. Bxe5 {[%emt 0:04:03]} Bxe5 {[%emt 0:01:55]} 17. f4 {[%emt 0:00:16]} Bxc3 {[%emt 0:00:35]} 18. bxc3 {[%emt 0:00:11]} Qc8 {[%emt 0:03:40]} 19. Qd2 {[%emt 0:05:14]} Qa6 {[%emt 0:03:04]} 20. Qd3 {[%emt 0:04:25]} Qa5 {[%emt 0:14:47]} 21. Rad1 {[%emt 0:02:21]} g6 {[%emt 0:00:12]} 22. Qf3 {[%emt 0:01:17]} Kg7 {[%emt 0:08:14]} 23. g4 {[%emt 0:02:29]} h5 {[%emt 0:07:36]} 24. gxh5 {[%emt 0:01:32]} Qc5+ {[%emt 0:03:21]} 25. Kh1 {[%emt 0:02:49]} Rh8 {[%emt 0:04:03]} 26. hxg6 {[%emt 0:01:23]} Rh3 {[%emt 0:00:59]} 27. Qg2 {[%emt 0:00:14]} f6 {[%emt 0:00:06]} 28. e5 {[%emt 0:03:22]} fxe5 {[%emt 0:01:03]} 29. Rxe5 {[%emt 0:00:15]} d5 {[%emt 0:02:40]} 30. Rde1 {[%emt 0:00:10]} Rbh8 {[%emt 0:00:13]} 31. Re7+ {[%emt 0:00:04]} Kg8 {[%emt 0:00:11]} 32. Rh7 {[%emt 0:01:11]} R8xh7 {[%emt 0:01:32]} 33. gxh7+ {[%emt 0:00:09]} Kxh7 {[%emt 0:00:03]} 34. Rg1 {[%emt 0:01:58]} Qf8 {[%emt 0:00:17]} 35. c4 {[%emt 0:00:33]} Bf5 {[%emt 0:01:17]} 36. Re1 {[%emt 0:00:14]} Qb4 {[%emt 0:07:36]} 37. Re8 {[%emt 0:00:22]} Rxb3 {[%emt 0:02:46]} 38. Qg8+ {[%emt 0:00:30]} Kh6 {[%emt 0:00:05]} 39. Qh8+ {[%emt 0:00:03]} Kg6 {[%emt 0:01:22]} 40. Rg8+ {[%emt 0:00:00]} 1-0

[Event "55th Rubinstein Memorial-A 2019"]
[Site "Polanica-Zdroj"]
[Date "2019.08.19"]
[Round "3.5"]
[White "Slomczewski, Michal"]
[Black "Grabarczyk, Miroslaw"]
[Result "0-1"]
[ECO "A09"]
[WhiteElo "2115"]
[BlackElo "2362"]
[Annotator "NA"]
[PlyCount "82"]
[EventDate "2019.08.17"]
[EventType "swiss"]
[EventCountry "POL"]
[SourceTitle "playchess.com"]
[Source "ChessBase"]
[SourceQuality "1"]
[TimeControl "40/5400+30:1800+30"]

1. Nf3 {[%emt 0:00:00]} d5 {[%emt 0:00:54]} 2. c4 {[%emt 0:00:00]} d4 {[%emt 0:02:09]} 3. e3 {[%emt 0:00:02]} Nc6 {[%emt 0:00:16]} 4. d3 {[%emt 0:15:33]} e5 {[%emt 0:03:54]} 5. Be2 {[%emt 0:09:08]} Nf6 {[%emt 0:02:30]} 6. O-O {[%emt 0:00:52]} Be7 {[%emt 0:03:26]} 7. exd4 {[%emt 0:00:31]} exd4 {[%emt 0:00:39]} 8. Na3 {[%emt 0:02:10]} O-O {[%emt 0:02:48]} 9. Nc2 {[%emt 0:00:44]} a5 {[%emt 0:03:48]} 10. Rb1 {[%emt 0:00:06]} Rb8 {[%emt 0:05:46]} 11. Re1 {[%emt 0:13:54]} b5 {[%emt 0:03:51]} 12. cxb5 {[%emt 0:09:12]} Rxb5 {[%emt 0:00:08]} 13. Bg5 {[%emt 0:00:44]} Be6 {[%emt 0:02:50]} 14. Na3 {[%emt 0:15:41]} Rb8 {[%emt 0:03:26]} 15. Nc4 {[%emt 0:00:28]} h6 {[%emt 0:07:22]} 16. Bxf6 {[%emt 0:01:11]} Bxf6 {[%emt 0:00:07]} 17. Nfd2 {[%emt 0:01:36]} Bg5 {[%emt 0:02:07]} 18. Ne4 {[%emt 0:07:30]} Bxc4 {[%emt 0:03:45]} 19. dxc4 {[%emt 0:00:12]} Ne5 {[%emt 0:00:56]} 20. Nxg5 {[%emt 0:06:08]} hxg5 {[%emt 0:02:09]} 21. Qd2 {[%emt 0:04:57]} c5 {[%emt 0:03:03]} 22. f4 {[%emt 0:00:10]} gxf4 {[%emt 0:01:58]} 23. Qxf4 {[%emt 0:00:01]} Qd6 {[%emt 0:03:44]} 24. Bd3 {[%emt 0:02:17]} Rbe8 {[%emt 0:04:38]} 25. Qg3 {[%emt 0:02:39]} Re6 {[%emt 0:03:24]} 26. Bf5 {[%emt 0:01:08]} Re7 {[%emt 0:01:59]} 27. Re4 {[%emt 0:00:42]} g6 {[%emt 0:10:08]} 28. Rbe1 {[%emt 0:00:42]} Rfe8 {[%emt 0:00:58]} 29. Bd7 {[%emt 0:00:04]} Qxd7 {[%emt 0:02:55]} 30. Rxe5 {[%emt 0:00:12]} Rxe5 {[%emt 0:00:28]} 31. Rxe5 {[%emt 0:00:07]} Rxe5 {[%emt 0:00:06]} 32. Qxe5 {[%emt 0:00:04]} d3 {[%emt 0:00:10]} 33. Qe1 {[%emt 0:03:04]} Qd4+ {[%emt 0:02:26]} 34. Kf1 {[%emt 0:00:15]} Qf4+ {[%emt 0:00:36]} 35. Kg1 {[%emt 0:00:27]} Qxc4 {[%emt 0:01:05]} 36. Qe3 {[%emt 0:02:00]} Qd5 {[%emt 0:01:08]} 37. Qd2 {[%emt 0:01:01]} a4 {[%emt 0:00:40]} 38. a3 {[%emt 0:00:07]} Qf5 {[%emt 0:02:09]} 39. h4 {[%emt 0:00:00]} c4 {[%emt 0:00:00]} 40. Qe3 {[%emt 0:00:00]} Qd5 {[%emt 0:00:00]} 41. Qd2 {[%emt 0:01:44]} Qd4+ {[%emt 0:02:07]} 0-1

[Event "55th Rubinstein Memorial-A 2019"]
[Site "Polanica-Zdroj"]
[Date "2019.08.19"]
[Round "3.7"]
[White "Malicka, Maria"]
[Black "Kozak, Antoni"]
[Result "0-1"]
[ECO "B41"]
[WhiteElo "2062"]
[BlackElo "2354"]
[Annotator "NA"]
[PlyCount "74"]
[EventDate "2019.08.17"]
[EventType "swiss"]
[EventCountry "POL"]
[SourceTitle "playchess.com"]
[Source "ChessBase"]
[SourceQuality "1"]
[TimeControl "40/5400+30:1800+30"]

1. e4 {[%emt 0:00:00]} c5 {[%emt 0:00:00]} 2. Nf3 {[%emt 0:00:00]} e6 {[%emt 0:00:00]} 3. d4 {[%emt 0:00:00]} cxd4 {[%emt 0:00:00]} 4. Nxd4 {[%emt 0:00:00]} a6 {[%emt 0:00:00]} 5. c4 {[%emt 0:00:00]} Nf6 {[%emt 0:00:00]} 6. Nc3 {[%emt 0:00:00]} Bb4 {[%emt 0:00:00]} 7. Qd3 {[%emt 0:00:11]} O-O {[%emt 0:00:00]} 8. e5 {[%emt 0:04:02]} Ne8 {[%emt 0:02:25]} 9. Bf4 {[%emt 0:04:44]} d6 {[%emt 0:10:53]} 10. Nc2 {[%emt 0:00:30]} Bxc3+ {[%emt 0:04:27]} 11. Qxc3 {[%emt 0:00:05]} dxe5 {[%emt 0:03:49]} 12. Rd1 {[%emt 0:07:00]} Qe7 {[%emt 0:01:44]} 13. Bxe5 {[%emt 0:01:01]} Nc6 {[%emt 0:00:06]} 14. Be2 {[%emt 0:07:52]} f6 {[%emt 0:01:28]} 15. Bf4 {[%emt 0:01:13]} e5 {[%emt 0:00:21]} 16. Be3 {[%emt 0:02:51]} f5 {[%emt 0:01:46]} 17. b4 {[%emt 0:03:56]} Nf6 {[%emt 0:04:21]} 18. f3 {[%emt 0:11:17]} Re8 {[%emt 0:00:35]} 19. O-O {[%emt 0:02:10]} f4 {[%emt 0:06:34]} 20. Bc5 {[%emt 0:02:06]} Qf7 {[%emt 0:00:07]} 21. Bd3 {[%emt 0:06:56]} Qh5 {[%emt 0:03:09]} 22. Rfe1 {[%emt 0:07:19]} Nd8 {[%emt 0:14:58]} 23. Bb6 {[%emt 0:09:43]} Nf7 {[%emt 0:00:12]} 24. c5 {[%emt 0:01:24]} Nd5 {[%emt 0:04:35]} 25. Bxh7+ {[%emt 0:01:56]} Kxh7 {[%emt 0:00:04]} 26. Rxd5 {[%emt 0:00:04]} Re6 {[%emt 0:00:02]} 27. Qd3+ {[%emt 0:10:03]} Rg6 {[%emt 0:01:58]} 28. Bc7 {[%emt 0:03:15]} Bf5 {[%emt 0:04:03]} 29. Qd2 {[%emt 0:01:25]} Ng5 {[%emt 0:01:10]} 30. Rf1 {[%emt 0:04:59]} Rh6 {[%emt 0:11:42]} 31. Rf2 {[%emt 0:05:09]} Qxh2+ {[%emt 0:00:14]} 32. Kf1 {[%emt 0:00:03]} Be6 {[%emt 0:04:38]} 33. Bxe5 {[%emt 0:02:00]} Bxd5 {[%emt 0:01:05]} 34. Qxd5 {[%emt 0:00:07]} Re8 {[%emt 0:00:42]} 35. Nd4 {[%emt 0:02:46]} Qh1+ {[%emt 0:00:11]} 36. Ke2 {[%emt 0:00:03]} Qc1 {[%emt 0:00:06]} 37. Nf5 {[%emt 0:01:13]} Qb2+ {[%emt 0:00:10]} 0-1

[Event "55th Rubinstein Memorial-A 2019"]
[Site "Polanica-Zdroj"]
[Date "2019.08.19"]
[Round "3.8"]
[White "Domanski, Lukasz"]
[Black "Kucza, Karol"]
[Result "0-1"]
[ECO "B10"]
[WhiteElo "2058"]
[BlackElo "2296"]
[Annotator "NA"]
[PlyCount "82"]
[EventDate "2019.08.17"]
[EventType "swiss"]
[EventCountry "POL"]
[SourceTitle "playchess.com"]
[Source "ChessBase"]
[SourceQuality "1"]
[TimeControl "40/5400+30:1800+30"]

1. e4 {[%emt 0:00:00]} c6 {[%emt 0:06:27]} 2. c4 {[%emt 0:00:24]} d5 {[%emt 0:00:07]} 3. exd5 {[%emt 0:00:17]} cxd5 {[%emt 0:00:07]} 4. cxd5 {[%emt 0:00:06]} Nf6 {[%emt 0:00:07]} 5. Nc3 {[%emt 0:00:10]} Nxd5 {[%emt 0:00:13]} 6. Nf3 {[%emt 0:00:09]} Nc6 {[%emt 0:00:16]} 7. Bb5 {[%emt 0:01:06]} g6 {[%emt 0:00:16]} 8. Qa4 {[%emt 0:06:33]} Qd6 {[%emt 0:00:06]} 9. O-O {[%emt 0:08:59]} Bg7 {[%emt 0:00:23]} 10. Qh4 {[%emt 0:10:38]} O-O {[%emt 0:07:53]} 11. d4 {[%emt 0:06:43]} Bf5 {[%emt 0:27:04]} 12. Bg5 {[%emt 0:06:36]} f6 {[%emt 0:08:46]} 13. Bd2 {[%emt 0:07:17]} g5 {[%emt 0:06:10]} 14. Qg3 {[%emt 0:02:58]} Qxg3 {[%emt 0:00:43]} 15. hxg3 {[%emt 0:01:19]} Nxc3 {[%emt 0:00:33]} 16. Bxc3 {[%emt 0:03:46]} e6 {[%emt 0:04:38]} 17. Bc4 {[%emt 0:04:02]} Rfd8 {[%emt 0:00:16]} 18. Rfe1 {[%emt 0:04:46]} Rd6 {[%emt 0:01:57]} 19. Rad1 {[%emt 0:11:01]} Rad8 {[%emt 0:00:24]} 20. Bb3 {[%emt 0:06:19]} Kf7 {[%emt 0:03:10]} 21. Re3 {[%emt 0:07:21]} Ne7 {[%emt 0:03:22]} 22. Bb4 {[%emt 0:02:12]} R6d7 {[%emt 0:00:41]} 23. Bxe7 {[%emt 0:01:05]} Rxe7 {[%emt 0:00:20]} 24. d5 {[%emt 0:01:23]} exd5 {[%emt 0:07:51]} 25. Rxd5 {[%emt 0:01:36]} Rxd5 {[%emt 0:00:06]} 26. Bxd5+ {[%emt 0:00:23]} Kf8 {[%emt 0:00:11]} 27. Rxe7 {[%emt 0:01:06]} Kxe7 {[%emt 0:00:05]} 28. Bxb7 {[%emt 0:00:18]} Kd6 {[%emt 0:00:07]} 29. Kf1 {[%emt 0:00:53]} Bb1 {[%emt 0:00:41]} 30. a3 {[%emt 0:03:07]} g4 {[%emt 0:00:05]} 31. Nd4 {[%emt 0:01:33]} f5 {[%emt 0:00:07]} 32. Nb5+ {[%emt 0:00:54]} Kc5 {[%emt 0:00:08]} 33. Nc3 {[%emt 0:00:26]} Bxc3 {[%emt 0:00:16]} 34. bxc3 {[%emt 0:00:16]} Kc4 {[%emt 0:00:03]} 35. f3 {[%emt 0:00:51]} Kxc3 {[%emt 0:00:12]} 36. Bc8 {[%emt 0:00:43]} Kb3 {[%emt 0:00:15]} 37. fxg4 {[%emt 0:00:35]} fxg4 {[%emt 0:00:05]} 38. Bxg4 {[%emt 0:00:08]} Kxa3 {[%emt 0:00:18]} 39. Bd7 {[%emt 0:00:49]} a5 {[%emt 0:00:07]} 40. Ke2 {[%emt 0:00:00]} Bc2 {[%emt 0:00:00]} 41. g4 {[%emt 0:02:56]} Kb2 {[%emt 0:01:12]} 0-1